bitfinex/quotes_ETHUSD_20241120
["timestamp","ask_amount","ask_price","bid_price","bid_amount"]
[1732135132053,3.25558,3071.7,3071.1,3.25614]
[1732135132253,3.25537,3071.9,3071.1,3.25608]
[1732135132479,0.325534,3071.8,3071.4,3.25576]
[1732135132689,3.25511,3072.1,3071.3,3.25593]
[1732135133207,3.25444,3072.8,3071.6,0.7781]
[1732135133408,3.25463,3072.6,3071.7,3.25552]
[1732135133696,3.25463,3072.6,3071.8,3.25535]
[1732135134153,3.2545,3072.7,3071.9,3.25524]
[1732135134354,3.579858,3072.8,3071.8,0.403362]
[1732135134557,3.2548,3072.4,3071.7,3.25543]
[1732135134771,3.2548,3072.4,3071.6,0.7781]
[1732135135101,3.25486,3072.4,3071.6,0.7781]
[1732135135405,3.25486,3072.4,3071.7,3.25552]
[1732135135600,3.25461,3072.6,3071.7,3.25552]
[1732135135760,3.580061,3072.6,3071.7,3.25552]
[1732135136099,0.325451,3072.6,3072.0,3.25513]
[1732135137083,3.25439,3072.8,3072.1,3.25507]
[1732135138111,6.50885,3072.8,3072.1,3.25507]
[1732135138273,3.01,3073.2,3072.2,3.25496]
[1732135138463,3.25432,3072.9,3072.2,3.25496]
[1732135138661,3.25432,3072.9,3072.0,3.2552]
[1732135138662,3.25459,3072.6,3072.0,3.2552]
[1732135138865,3.25459,3072.6,3071.7,3.25545]
[1732135138866,3.25486,3072.4,3071.7,3.25545]
[1732135139196,0.00857048,3072.3,3071.8,3.25532]
[1732135139400,3.25474,3072.5,3071.8,3.25532]
[1732135139599,3.25474,3072.5,3072.0,3.2552]
[1732135139600,0.00645169,3072.4,3072.0,3.2552]
[1732135139773,0.00857048,3072.4,3072.0,3.2552]
[1732135140355,0.00857048,3072.4,3072.3,4.02809]
[1732135140583,3.25407,3073.1,3072.4,3.25473]
[1732135140762,3.25385,3073.3,3072.4,3.25478]
[1732135140988,3.25385,3073.3,3072.6,3.25448]
[1732135140989,3.25396,3073.2,3072.6,3.25448]
[1732135141206,3.25404,3073.1,3072.5,3.2546]
[1732135141398,3.25396,3073.2,3072.6,3.25454]
[1732135141621,0.327385,3073.3,3072.7,3.25446]
[1732135141904,3.2538,3073.4,3072.7,3.25446]
[1732135141905,3.2538,3073.4,3072.8,3.25432]
[1732135142099,3.2538,3073.4,3072.9,0.7987]
[1732135142873,3.25395,3073.2,3072.9,0.7987]
[1732135143077,3.25393,3073.3,3072.9,0.7987]
[1732135143319,0.32732,3073.8,3072.9,0.7987]
[1732135143320,3.25373,3073.4,3072.9,0.7987]
[1732135143678,3.25385,3073.3,3072.9,0.7987]
[1732135143874,3.25373,3073.4,3072.9,0.7987]
[1732135144078,3.25388,3073.3,3072.9,0.7987]
[1732135144318,3.254,3073.2,3072.9,0.7987]
[1732135144505,3.254,3073.2,3072.5,0.40278]
[1732135144506,0.40996154,3073.6,3072.6,0.8319]
[1732135144814,3.25383,3073.3,3072.7,3.25441]
[1732135145019,0.47548986,3073.6,3072.9,3.25416]
[1732135145180,3.25333,3073.8,3073.2,3.25385]
[1732135145378,4.06852361,3074.1,3073.2,0.8319]
[1732135145379,3.25305,3074.1,3073.2,0.8319]
[1732135145581,3.25299,3074.1,3073.3,3.25383]
[1732135145813,3.25292,3074.2,3073.5,3.25359]
[1732135146148,3.65856207,3074.5,3073.4,3.25368]
[1732135146149,3.25318,3074.0,3073.4,3.25368]
[1732135146359,0.01,3074.7,3073.2,0.8319]
[1732135146360,3.25216,3074.9,3073.6,0.7887]
[1732135146658,3.2527,3074.4,3073.8,0.7887]
[1732135146799,0.41236154,3074.8,3073.8,0.7887]
[1732135147001,3.2531,3074.0,3073.8,0.7887]
[1732135147212,0.32531,3073.9,3073.4,0.7887]
[1732135147509,3.25311,3074.0,3073.4,4.04241]
[1732135148048,3.25311,3074.0,3072.6,0.55]
[1732135148049,3.25351,3073.7,3073.1,0.7896]
[1732135148214,0.325351,3073.6,3073.1,0.7896]
[1732135148402,3.25333,3073.8,3073.2,3.25383]
[1732135148603,3.2534,3073.7,3073.1,0.7896]
[1732135148807,3.25357,3073.6,3073.1,0.7896]
[1732135149030,3.0,3074.3,3073.1,0.7896]
[1732135149237,3.0,3074.3,3072.8,4.0439]
[1732135149238,3.25371,3073.5,3072.8,4.0439]
[1732135149421,3.25384,3073.3,3072.8,0.7896]
[1732135149741,3.25371,3073.5,3072.9,3.25422]
[1732135149962,3.25343,3073.7,3073.1,3.25398]
[1732135150114,3.25336,3073.8,3073.1,3.25395]
[1732135150313,3.25323,3073.9,3073.1,3.25395]
[1732135150616,3.903867,3073.9,3073.3,3.25377]
[1732135151615,0.66585621,3074.2,3072.3,3.66856207]
[1732135151616,3.91879621,3074.2,3073.6,3.25346]
[1732135151815,3.2528,3074.3,3073.5,3.25361]
[1732135152013,3.25253,3074.6,3073.7,3.25334]
[1732135152207,4.25738621,3074.6,3073.9,3.25318]
[1732135152522,3.25208,3075.0,3074.2,3.25277]
[1732135152722,4.08092361,3075.6,3074.0,0.806]
[1732135152723,3.25201,3075.1,3074.0,0.806]
[1732135152951,0.325208,3075.0,3074.1,3.25298]
[1732135153127,3.25175,3075.3,3074.8,0.8328]
[1732135153332,3.25162,3075.4,3074.8,0.8328]
[1732135153542,0.325152,3075.4,3074.8,0.8328]
[1732135153789,3.25189,3075.2,3074.8,0.8328]
[1732135154092,3.25162,3075.4,3074.8,0.8328]
[1732135154300,3.25088,3076.1,3074.9,3.65856207]
[1732135154457,3.576058,3076.0,3075.3,3.2517]
[1732135154662,3.25097,3076.0,3075.3,3.25164]
[1732135154978,3.25078,3076.2,3075.5,3.25142]
[1732135155152,3.25058,3076.4,3075.5,3.985051]
[1732135155360,3.25003,3076.9,3075.5,3.985051]
[1732135155361,3.25085,3076.2,3075.5,3.25146]
[1732135155583,0.325085,3076.1,3075.7,3.25128]
[1732135155794,3.25058,3076.4,3075.7,3.25128]
[1732135155997,3.25067,3076.3,3075.7,3.25128]
[1732135156200,3.25083,3076.2,3075.6,3.25138]
[1732135156360,3.25068,3076.3,3075.7,3.25127]
[1732135156784,0.325058,3076.4,3075.4,0.8328]
[1732135157052,3.25097,3076.1,3075.5,3.25143]
[1732135157452,3.25079,3076.2,3075.6,3.25139]
[1732135157689,3.25079,3076.2,3075.5,3.25143]
[1732135157893,3.25104,3076.0,3075.4,0.8328]
[1732135158255,6.50209,3076.0,3075.4,0.8328]
[1732135158454,0.325079,3076.1,3075.6,3.25135]
[1732135158723,3.25079,3076.2,3075.6,3.25135]
[1732135158987,3.25079,3076.2,3075.5,3.25149]
[1732135159147,3.25088,3076.1,3075.5,3.25149]
[1732135159352,3.25077,3076.2,3075.4,0.8328]
[1732135159580,3.25072,3076.3,3075.6,3.25138]
[1732135159996,0.46494463,3076.4,3075.6,3.25138]
[1732135160338,0.46494463,3076.4,3075.4,4.08438]
[1732135160339,3.25116,3075.9,3075.4,0.8328]
[1732135160595,3.25129,3075.7,3075.4,0.8328]
[1732135160795,0.325116,3075.8,3074.7,0.7709]
[1732135160796,3.25157,3075.5,3074.7,0.7709]
[1732135160952,3.25167,3075.4,3074.7,0.7709]
[1732135161154,0.43832651,3075.8,3074.7,0.7709]
[1732135161155,3.25182,3075.2,3074.7,0.7709]
[1732135161393,3.25211,3075.0,3074.7,0.7709]
[1732135161616,3.25211,3075.0,3073.7,3.65856207]
[1732135161617,0.325182,3075.2,3074.3,0.8307]
[1732135161897,0.325182,3075.2,3073.7,0.8307]
[1732135161898,3.25286,3074.3,3073.7,0.8307]
[1732135162102,3.25299,3074.1,3073.7,0.8307]
[1732135162330,3.2531,3074.0,3073.7,0.8307]
[1732135162663,3.25326,3073.9,3073.7,0.8307]
[1732135162808,3.25326,3073.9,3073.2,0.7972]
[1732135163019,3.25326,3073.9,3073.3,3.25375]
[1732135163392,3.25302,3074.1,3073.5,3.25361]
[1732135164133,3.2532,3073.9,3073.3,3.25375]
[1732135164333,3.2532,3073.9,3073.4,3.2537]
[1732135164493,3.2531,3074.0,3073.3,0.405095]
[1732135164835,3.2531,3074.0,3073.4,3.25372]
[1732135165557,3.2532,3073.9,3073.3,0.405095]
[1732135165848,3.25311,3074.0,3073.4,0.4456145]
[1732135166201,3.25311,3074.0,3073.4,3.6993245]
[1732135166533,3.25302,3074.1,3073.4,3.6993245]
[1732135166739,3.25309,3074.0,3073.4,3.6993245]
[1732135167108,3.65856207,3074.5,3073.2,0.7972]
[1732135167409,3.25337,3073.8,3073.2,4.05109]
[1732135167743,3.25322,3073.9,3073.3,3.25375]
[1732135167923,3.25355,3073.6,3073.2,0.7972]
[1732135168128,3.25363,3073.5,3073.2,0.7972]
[1732135168332,3.25307,3074.1,3072.7,3.25444]
[1732135168333,3.25392,3073.3,3072.7,3.25444]
[1732135168499,3.25392,3073.3,3072.7,7.242447]
[1732135168700,3.25392,3073.3,3072.7,3.988007]
[1732135168917,3.25395,3073.2,3072.7,0.733627]
[1732135169246,3.25367,3073.5,3072.8,3.25436]
[1732135169247,3.25384,3073.3,3072.8,3.25436]
[1732135169446,3.25384,3073.3,3072.6,3.25455]
[1732135169650,3.25412,3073.1,3072.5,0.8272]
[1732135169861,3.25422,3073.0,3072.5,0.8272]
[1732135170036,3.25436,3072.8,3072.5,0.8272]
[1732135170221,3.25383,3073.3,3072.5,0.8272]
[1732135170429,3.25419,3073.0,3072.5,0.8272]
[1732135170736,3.25421,3073.0,3072.5,0.8272]
[1732135170935,3.325345,3073.6,3072.5,0.8272]
[1732135171178,3.25456,3072.7,3072.5,0.8272]
[1732135171372,6.65856207,3073.3,3072.1,0.7688]
[1732135171520,3.25469,3072.5,3072.1,0.7688]
[1732135171834,0.00645169,3072.4,3072.1,4.02386]
[1732135172040,3.25447,3072.7,3072.1,4.751768]
[1732135172259,0.00221452,3072.6,3072.3,3.25482]
[1732135172421,3.25425,3072.9,3072.3,3.25482]
[1732135172620,3.25425,3072.9,3072.1,1.496708]
[1732135172621,0.325345,3073.6,3072.4,0.325482]
[1732135172864,3.25361,3073.5,3072.8,0.7652]
[1732135173226,3.25361,3073.5,3072.9,3.25423]
[1732135173425,3.25361,3073.5,3073.0,0.401943]
[1732135173667,3.25354,3073.6,3073.0,3.656013]
[1732135173902,3.25363,3073.5,3073.0,0.401943]
[1732135174068,3.25383,3073.3,3072.8,0.7652]
[1732135174407,3.25376,3073.4,3072.8,4.01952]
[1732135174554,3.25376,3073.4,3072.9,0.401965]
[1732135175397,4.05454196,3075.6,3072.9,0.401965]
[1732135175398,0.01,3075.1,3073.5,0.7652]
[1732135175705,0.01,3075.1,3073.6,3.25351]
[1732135175706,3.25295,3074.2,3073.6,3.25351]
[1732135176066,6.50592,3074.2,3073.6,3.25351]
[1732135176277,6.50592,3074.2,3073.7,0.401871]
[1732135176278,3.25298,3074.1,3073.7,0.401871]
[1732135176468,3.25295,3074.2,3073.7,0.401871]
[1732135176663,3.25295,3074.2,3073.0,0.7652]
[1732135176664,3.25351,3073.6,3073.0,0.7652]
[1732135176862,3.65856207,3074.4,3073.1,3.25404]
[1732135176863,3.25346,3073.7,3073.1,3.25404]
[1732135177070,3.25346,3073.7,3073.1,0.401924]
[1732135177484,3.25364,3073.5,3073.1,0.401924]
[1732135177656,3.25346,3073.7,3073.1,3.655944]
[1732135177864,3.25325,3073.9,3073.1,3.655944]
[1732135178099,3.0,3074.3,3073.2,3.25386]
[1732135178257,3.25323,3073.9,3073.2,3.25386]
[1732135178465,3.25336,3073.8,3073.2,3.25386]
[1732135178815,3.25314,3074.0,3073.3,3.2538]
[1732135178963,3.2532,3073.9,3073.3,3.2538]
[1732135179609,0.43832651,3074.6,3073.2,0.8079]
[1732135179809,3.25283,3074.3,3073.5,3.25361]
[1732135179957,3.25283,3074.3,3073.3,0.55]
[1732135179958,3.25341,3073.7,3073.2,0.8079]
[1732135180299,3.25319,3073.9,3073.3,3.25376]
[1732135180467,6.5061,3074.1,3073.4,3.25371]
[1732135180671,3.25336,3073.8,3073.2,0.8079]
[1732135180885,3.25342,3073.7,3073.2,0.8079]
[1732135181331,0.325342,3073.7,3073.2,0.8079]
[1732135181475,3.25368,3073.5,3072.4,0.55]
[1732135181664,3.25368,3073.5,3072.9,3.25425]
[1732135181665,3.6115822,3073.5,3072.9,3.25425]
[1732135182040,3.25383,3073.3,3072.7,3.25444]
[1732135182163,3.6115922,3073.5,3072.8,3.25433]
[1732135182363,3.25369,3073.5,3072.8,3.25433]
[1732135182556,3.25369,3073.5,3072.9,3.25423]
[1732135182798,0.325342,3073.7,3072.9,3.25423]
[1732135183095,4.09688858,3074.0,3072.9,3.25423]
[1732135183096,3.25372,3073.4,3072.9,3.25423]
[1732135183611,3.25325,3073.9,3073.3,3.25376]
[1732135183808,3.25325,3073.9,3073.3,3.25374]
[1732135184111,3.61864621,3074.3,3073.6,3.25348]
[1732135184291,3.61864621,3074.3,3073.8,3.25329]
[1732135184478,0.36585621,3074.3,3073.8,3.25329]
[1732135184673,3.2524,3074.7,3074.1,3.25292]
[1732135185000,0.43832651,3075.0,3073.7,0.7952]
[1732135185001,3.25226,3074.8,3073.8,3.2533]
[1732135185310,3.25209,3075.0,3073.2,3.26389]
[1732135185311,0.43832651,3075.2,3074.4,0.7952]
[1732135185614,3.25283,3074.3,3073.6,3.25343]
[1732135185762,3.25283,3074.3,3073.7,3.25335]
[1732135185763,0.325283,3074.2,3073.7,3.25335]
[1732135186100,3.25259,3074.5,3074.0,3.25308]
[1732135186421,3.25259,3074.5,3073.2,0.03253375]
[1732135186422,3.25237,3074.7,3074.1,4.03]
[1732135186561,3.25219,3074.9,3074.3,3.25276]
[1732135186767,3.25219,3074.9,3074.1,4.03]
[1732135186768,3.577479,3074.8,3074.1,4.03]
[1732135187078,3.577479,3074.8,3074.2,3.25287]
[1732135187464,3.25201,3075.1,3074.1,0.7771]
[1732135187707,3.25172,3075.3,3074.5,3.25246]
[1732135187913,3.25172,3075.3,3074.7,3.25234]
[1732135188093,3.25167,3075.4,3074.7,3.25234]
[1732135188414,0.69096521,3075.8,3074.6,0.7771]
[1732135188588,3.25215,3074.9,3074.6,0.7771]
[1732135189280,6.50439,3074.9,3074.6,0.7771]
[1732135189490,3.902589,3074.9,3074.6,0.7771]
[1732135189829,3.25234,3074.7,3074.6,0.7771]
[1732135190378,3.25215,3074.9,3074.6,0.7771]
[1732135190687,3.2523,3074.8,3074.6,0.7771]
[1732135190881,3.25207,3075.0,3074.6,0.7771]
[1732135191091,3.2522,3074.9,3074.6,0.7771]
[1732135191281,3.25231,3074.8,3074.6,0.7771]
[1732135191624,3.25205,3075.0,3074.6,0.7771]
[1732135192319,6.50375,3075.2,3074.6,0.7771]
[1732135192523,3.96132886,3075.4,3074.7,3.25233]
[1732135192733,3.96132886,3075.4,3074.7,3.655273]
[1732135192734,3.25169,3075.4,3074.7,3.655273]
[1732135193023,3.25184,3075.2,3074.6,0.7771]
[1732135193229,3.25184,3075.2,3074.6,4.02949]
[1732135193732,3.25184,3075.2,3074.7,3.25234]
[1732135194024,6.50336,3075.4,3074.7,6.50461]
[1732135194336,3.25193,3075.1,3074.6,0.7771]
[1732135194835,3.25204,3075.0,3074.6,0.7771]
[1732135194989,3.2509,3076.1,3075.0,3.25201]
[1732135195193,0.43832651,3076.3,3074.8,0.7771]
[1732135195400,3.25157,3075.5,3074.9,3.25212]
[1732135195627,3.25162,3075.4,3074.8,0.7771]
[1732135195796,3.25188,3075.2,3074.8,0.7771]
[1732135196199,3.2519,3075.2,3074.8,0.7771]
[1732135196498,3.25159,3075.5,3074.8,0.7771]
[1732135196706,3.25181,3075.3,3074.8,0.7771]
[1732135197146,3.25182,3075.2,3074.8,0.7771]
[1732135197303,3.25181,3075.3,3074.8,0.7771]
[1732135197503,3.25182,3075.2,3074.8,0.7771]
[1732135198115,3.25174,3075.3,3074.8,0.7771]
[1732135198320,3.25174,3075.3,3074.8,1.180037]
[1732135198639,3.25182,3075.2,3074.8,1.180037]
[1732135198991,3.25135,3075.7,3074.9,3.25204]
[1732135199237,3.25135,3075.7,3075.1,3.2519]
[1732135199480,3.25145,3075.6,3075.1,3.2519]
[1732135199755,3.25128,3075.8,3075.1,3.25184]
[1732135199972,6.4,3076.8,3075.2,1.10919]
[1732135200250,3.25105,3076.0,3075.4,3.25159]
[1732135200400,3.25056,3076.4,3075.7,3.25123]
[1732135200606,3.25056,3076.4,3075.8,1.109123]
[1732135200802,3.25065,3076.3,3075.8,4.360243]
[1732135201049,3.25073,3076.3,3075.8,0.784]
[1732135201363,3.25034,3076.6,3076.0,3.25087]
[1732135201570,3.575374,3076.6,3076.1,3.25083]
[1732135201751,3.25054,3076.5,3075.8,4.03508]
[1732135201983,3.6081274,3076.4,3075.8,4.03508]
[1732135202254,3.25054,3076.5,3075.8,4.03508]
[1732135202435,3.25053,3076.5,3076.0,3.25094]
[1732135202761,3.65856207,3076.9,3075.9,3.25101]
[1732135202925,3.25053,3076.5,3075.9,3.25101]
[1732135203129,3.25046,3076.5,3075.9,3.25101]
[1732135203362,3.25046,3076.5,3076.0,3.25096]
[1732135203662,0.36585621,3076.8,3075.8,4.03512]
[1732135203663,3.25066,3076.3,3075.8,4.03512]
[1732135203826,3.25082,3076.2,3075.8,0.784]
[1732135204038,3.25115,3075.9,3075.3,0.7809]
[1732135204250,0.43832651,3076.2,3075.3,0.7809]
[1732135204251,7.23455407,3076.1,3075.3,4.03252]
[1732135204572,3.65856207,3076.1,3075.3,0.7809]
[1732135204770,3.25124,3075.8,3075.3,0.7809]
[1732135204954,0.325124,3075.7,3075.3,0.7809]
[1732135205336,3.25108,3075.9,3075.3,4.03261]
[1732135205562,6.90905207,3076.5,3075.3,0.7809]
[1732135205719,3.25093,3076.1,3075.4,6.50311]
[1732135205925,3.65856207,3076.5,3075.3,0.7809]
[1732135205926,3.25108,3075.9,3075.3,4.03259]
[1732135206122,3.25125,3075.8,3075.3,0.7809]
[1732135206333,3.9339923,3075.8,3075.3,0.7809]
[1732135206643,3.2507,3076.3,3075.5,3.2514]
[1732135206956,3.2507,3076.3,3075.8,0.7827]
[1732135207155,0.43832651,3076.3,3075.5,0.7827]
[1732135207331,3.25092,3076.1,3075.6,3.25139]
[1732135207526,0.357599,3076.0,3075.5,0.7827]
[1732135207753,3.25115,3075.9,3075.5,0.7827]
[1732135207922,3.25129,3075.7,3075.5,0.7827]
[1732135208126,3.25119,3075.8,3075.5,0.7827]
[1732135208325,3.25129,3075.7,3075.5,0.7827]
[1732135208530,0.650233,3075.8,3075.5,0.7827]
[1732135208736,3.25114,3075.9,3075.5,0.7827]
[1732135208969,3.25139,3075.6,3075.5,0.7827]
[1732135209674,3.2513,3075.7,3075.5,0.7827]
[1732135209879,3.25139,3075.6,3075.5,0.7827]
[1732135210228,3.25139,3075.6,3075.0,0.7626]
[1732135210434,3.25139,3075.6,3075.0,4.01463]
[1732135210661,6.50287,3075.6,3075.0,4.01463]
[1732135210869,3.25151,3075.5,3075.0,4.01463]
[1732135211079,3.25135,3075.7,3075.2,3.25178]
[1732135211594,3.25141,3075.6,3075.0,4.416023]
[1732135211734,0.72345621,3076.0,3075.0,0.7626]
[1732135211735,3.2518,3075.3,3075.0,0.7626]
[1732135211935,3.25179,3075.3,3075.0,0.7626]
[1732135212331,3.25118,3075.8,3075.2,3.25173]
[1732135212681,0.66894365,3075.8,3075.4,3.25157]
[1732135212828,3.25114,3075.9,3075.3,0.7993]
[1732135213173,3.25127,3075.8,3075.3,0.7993]
[1732135213643,3.25114,3075.9,3075.3,4.05093]
[1732135213831,3.25119,3075.8,3075.3,4.05093]
[1732135214039,3.2513,3075.7,3075.3,0.7993]
[1732135214441,6.50268,3075.7,3075.3,0.7993]
[1732135214685,3.2513,3075.7,3075.3,0.7993]
[1732135215212,3.25118,3075.8,3075.3,0.7993]
[1732135215338,3.25118,3075.8,3073.5,3.419]
[1732135215339,3.25203,3075.0,3074.9,0.8113]
[1732135215542,3.25245,3074.6,3074.5,0.8113]
[1732135216049,3.25257,3074.5,3074.1,0.8113]
[1732135216362,3.25273,3074.4,3074.1,0.8113]
[1732135216675,3.25251,3074.6,3074.1,0.8113]
[1732135217380,3.25264,3074.5,3074.1,0.8113]
[1732135217579,3.25233,3074.8,3074.1,0.8113]
[1732135217815,3.25233,3074.8,3074.3,3.25276]
[1732135218107,3.25231,3074.8,3074.2,3.25285]
[1732135218318,3.25231,3074.8,3074.1,4.06422]
[1732135218319,3.25192,3075.1,3074.1,4.06422]
[1732135218461,3.25257,3074.5,3074.1,0.8113]
[1732135218659,3.25253,3074.6,3074.1,0.8113]
[1732135219258,3.25228,3074.8,3074.1,0.8113]
[1732135219490,3.2524,3074.7,3074.1,4.06424]
[1732135219803,3.25257,3074.5,3074.1,0.8113]
[1732135219956,3.25262,3074.5,3074.1,0.8113]
[1732135220294,3.577882,3074.5,3074.1,0.8113]
[1732135220598,3.25279,3074.3,3074.1,0.8113]
[1732135220805,3.69135259,3075.1,3074.1,0.8113]
[1732135221117,3.2516,3075.4,3074.6,0.8165]
[1732135221443,3.68950651,3075.9,3074.6,0.8165]
[1732135221444,3.25218,3074.9,3074.6,0.8165]
[1732135221751,3.25234,3074.7,3074.6,0.8165]
[1732135221859,6.91030207,3075.3,3074.0,0.7927]
[1732135221860,3.25277,3074.3,3074.0,0.7927]
[1732135222370,3.25256,3074.5,3074.0,4.04577]
[1732135222715,3.25256,3074.5,3074.0,0.7927]
[1732135222716,3.25272,3074.4,3074.0,0.7927]
[1732135223872,3.25278,3074.3,3074.0,0.7927]
[1732135224194,3.25278,3074.3,3073.5,3.25359]
[1732135224195,3.25299,3074.1,3073.6,0.8116]
[1732135224694,3.25316,3074.0,3073.6,0.8116]
[1732135226212,3.2534,3073.7,3073.1,0.8116]
[1732135226355,3.2534,3073.7,3073.2,3.25392]
[1732135226896,3.2534,3073.8,3073.1,0.8116]
[1732135227066,3.0,3074.3,3073.2,0.03253674]
[1732135227271,3.2532,3073.9,3073.4,3.25362]
[1732135227885,3.25309,3074.0,3073.4,3.25362]
[1732135228103,3.25299,3074.1,3073.4,3.25362]
[1732135228320,3.25279,3074.3,3073.7,0.7595]
[1732135228454,3.25264,3074.5,3074.0,3.25301]
[1732135228659,3.25251,3074.6,3074.1,0.7829]
[1732135228985,3.25285,3074.3,3074.1,0.7829]
[1732135229702,3.25262,3074.5,3074.1,0.7829]
[1732135229887,3.25238,3074.7,3074.1,0.7829]
[1732135229888,3.25255,3074.6,3074.1,0.7829]
[1732135230088,3.25238,3074.7,3074.1,4.03586]
[1732135230610,4.09688858,3075.3,3074.2,0.55]
[1732135230611,0.43832651,3075.3,3074.2,0.55]
[1732135230812,8.96,3077.4,3074.2,0.55]
[1732135230813,3.25199,3075.1,3074.5,3.25254]
[1732135230966,3.25166,3075.4,3074.6,0.7829]
[1732135231316,1.01604421,3075.9,3074.6,0.7829]
[1732135231611,3.25129,3075.7,3074.6,0.7829]
[1732135231771,3.25129,3075.7,3074.6,4.03529]
[1732135231772,3.25181,3075.3,3074.6,4.03529]
[1732135231974,3.25197,3075.1,3074.6,0.7829]
[1732135232399,0.40688107,3075.7,3074.6,0.7829]
[1732135232400,3.25175,3075.3,3074.6,0.7829]
[1732135232782,3.25199,3075.1,3074.6,0.7829]
[1732135233121,3.25208,3075.0,3074.6,0.7829]
[1732135233276,3.25214,3074.9,3074.6,0.7829]
[1732135233477,6.50401,3075.1,3074.6,0.7829]
[1732135233710,3.25199,3075.1,3074.6,0.7829]
[1732135233917,3.25139,3075.6,3074.8,3.25224]
[1732135234117,3.25169,3075.4,3074.8,3.25224]
[1732135234418,3.25169,3075.4,3074.6,4.03526]
[1732135234621,3.25173,3075.3,3074.7,3.25228]
[1732135234920,3.25157,3075.5,3074.9,3.25206]
[1732135235230,3.25157,3075.5,3075.0,3.25202]
[1732135235526,3.2515,3075.6,3074.9,3.25206]
[1732135235682,0.650283,3075.6,3075.0,3.25202]
[1732135235881,3.25119,3075.8,3075.2,3.25179]
[1732135236082,3.251,3076.0,3075.3,0.7921]
[1732135236320,3.25119,3075.8,3075.3,0.7921]
[1732135236922,3.25129,3075.7,3075.3,0.7921]
[1732135237234,3.576161,3076.0,3075.3,0.7921]
[1732135237235,3.576121,3076.0,3075.3,0.7921]
[1732135237393,3.2516,3075.4,3075.3,0.7921]
[1732135237576,0.3576121,3075.9,3075.3,0.7921]
[1732135237577,3.25151,3075.5,3075.3,0.7921]
[1732135237822,3.2516,3075.4,3075.3,0.7921]
[1732135238029,3.25192,3075.1,3074.7,0.7921]
[1732135238333,3.25224,3074.8,3074.3,0.7921]
[1732135238485,3.25237,3074.7,3074.3,0.7921]
[1732135239040,3.25215,3074.9,3074.3,0.7921]
[1732135239228,6.50439,3074.9,3074.3,4.04487]
[1732135239443,3.902589,3074.9,3074.3,0.7921]
[1732135239585,6.50485,3074.7,3074.3,0.7921]
[1732135239907,3.25241,3074.7,3074.3,0.7921]
[1732135240236,0.42024861,3075.7,3074.3,0.7921]
[1732135240237,3.25196,3075.1,3074.3,0.7921]
[1732135240534,3.25196,3075.1,3074.6,3.25245]
[1732135240682,3.25176,3075.3,3074.6,3.25245]
[1732135241030,3.576936,3075.3,3074.5,3.25249]
[1732135241253,3.65856207,3076.2,3075.0,3.25196]
[1732135241389,3.25141,3075.6,3075.0,3.25196]
[1732135241636,3.25141,3075.6,3075.0,3.25195]
[1732135242224,3.65856207,3076.2,3075.0,3.25195]
[1732135242225,3.25138,3075.7,3075.0,3.25195]
[1732135242433,3.25123,3075.8,3075.3,3.2517]
[1732135242731,3.25123,3075.8,3075.2,4.03968]
[1732135243025,3.36585621,3076.1,3075.3,0.55]
[1732135243210,3.25137,3075.7,3075.2,0.7879]
[1732135243784,3.36585621,3076.1,3075.2,0.7879]
[1732135244022,3.25141,3075.6,3075.2,0.7879]
[1732135244388,3.25157,3075.5,3075.2,0.7879]
[1732135244703,3.25162,3075.4,3075.2,0.7879]
[1732135244921,3.25141,3075.6,3075.2,0.7879]
[1732135245148,3.25125,3075.8,3075.2,4.03971]
[1732135245428,3.2513,3075.7,3075.2,4.03971]
[1732135246520,3.2513,3075.7,3075.2,0.7879]
[1732135246823,6.50253,3075.8,3075.2,0.7879]
[1732135247123,3.2514,3075.6,3075.2,0.7879]
[1732135247686,4.08643915,3075.8,3075.2,0.7879]
[1732135247919,3.25204,3075.0,3074.4,3.25258]
[1732135248138,3.25204,3075.0,3074.3,0.8182]
[1732135248139,3.25171,3075.3,3074.3,0.8182]
[1732135248432,3.25227,3074.8,3074.3,0.8182]
[1732135248626,6.5046,3074.8,3074.3,0.8182]
[1732135248986,3.25227,3074.8,3074.3,4.0709]
[1732135249187,3.65856207,3075.4,3074.3,4.07091]
[1732135249417,3.65856207,3075.4,3074.3,0.8182]
[1732135249418,3.25227,3074.8,3074.3,0.8182]
[1732135249590,3.25235,3074.7,3074.3,0.8182]
[1732135249998,3.25223,3074.9,3074.3,4.07095]
[1732135250303,3.25223,3074.9,3074.3,0.8182]
[1732135250304,0.325223,3074.8,3074.3,0.8182]
[1732135250502,3.25235,3074.7,3074.3,0.8182]
[1732135250836,0.325223,3074.8,3074.3,0.8182]
[1732135251129,3.25162,3075.4,3074.8,3.2522]
[1732135251321,3.25245,3074.6,3074.5,0.7842]
[1732135251492,3.577695,3074.6,3074.5,0.7842]
[1732135252614,3.25245,3074.6,3074.5,0.7842]
[1732135252844,6.50416,3075.0,3074.5,0.7842]
[1732135253001,3.25225,3074.8,3074.5,0.7842]
[1732135253206,3.577475,3074.8,3074.5,0.7842]
[1732135253528,3.25225,3074.8,3074.5,0.7842]
[1732135253728,3.25208,3075.0,3074.5,0.7842]
[1732135253953,3.25232,3074.8,3074.5,0.7842]
[1732135254155,3.25213,3074.9,3074.5,0.7842]
[1732135254358,6.50433,3074.9,3074.5,0.7842]
[1732135254662,3.25236,3074.7,3074.5,0.7842]
[1732135254816,3.25213,3074.9,3074.5,0.7842]
[1732135255017,3.25231,3074.8,3074.5,0.7842]